Workbook

Sheet Лист1
A3: Названия строк | B3: Сумма по полю Расход ДТ, грн.
A4: Январь | B4: 29590.0024
A5: 2014-01-08 | B5: 29590.0024
A6: 2014-01-09 | B6: 0
A7: Общий итог | B7: 29590.0024

Sheet База
A1: ОБЩИЕ ДАННЫЕ ПО МАРШРУТУ | L1: РАСХОД ЗА ВЕСЬ МАРШРУТ (КРУГ)
A2: Месяц | B2: Дата | C2: Вид Маршрута | D2: СТ, СПД | E2: Маршрут | F2: Расст.,км | G2: Вес, кг. | H2: Объем, м куб. | I2: Доставка | J2: Цена ДТ, грн. | K2: Расход ДТ, л. | L2: Расход ДТ, грн. | M2: Командировочные | N2: З/п | O2: Цена маршрута | P2: Расходы за рейс, грн | Q2: Затраты на ремонт (СТО), грн | R2: ЗАТРАТЫ (ВСЕГО), грн | S2: Стоимость затрат, другими перевозчиками | T2: Прибыль от экспорта | U2: Стоимость обратной загрузки | V2: Себестоимость рейса с учетом обратной загрузки | W2: Экономия | X2: Стоимость перевозки 1кг. | Y2: 1кг/1км, грн. | Z2: ЗАТРАТЫ СТ-СПД | AA2: К-во маршрутов
A3: =IF(ISBLANK(B3),"-",TEXT($B3,"ММММ")) -> Январь | B3: 2014-01-08 | C3: Украина | D3: СТ | E3: Киев - Днепропетровск - Краматорск - Луганск | F3: 960 | G3: 12962 | H3: 96 | I3: 3 | J3: 10.18 | K3: 770.26 | L3: =J3*K3 -> 7841.2468 | M3: 450 | N3: 1200 | O3: 5227 | R3: =SUM(База[[#This Row],[Расход ДТ, грн.]:[З/п]], База[[#This Row],[Расходы за рейс, грн]:[Затраты на ремонт (СТО), грн]]) -> 9491.2468 | S3: 8500 | U3: 3000 | V3: =База[[#This Row],[ЗАТРАТЫ (ВСЕГО), грн]]-База[[#This Row],[Стоимость обратной загрузки]] -> 6491.2468 | W3: =S3+База[[#This Row],[Прибыль от экспорта]]-V3 -> 2008.7532 | X3: =IFERROR(База[[#This Row],[Себестоимость рейса с учетом обратной загрузки]]/База[[#This Row],[Вес, кг.]],0) -> 0.5007905262 | Y3: =IFERROR(База[[#This Row],[Расст.,км]]/База[[#This Row],[Вес, кг.]]*База[[#This Row],[Стоимость перевозки 1кг.]],0) -> 0.03708987078 | Z3: =IF(База[[#This Row],[СТ, СПД]]="СТ",База[[#This Row],[ЗАТРАТЫ (ВСЕГО), грн]],База[[#This Row],[Стоимость затрат, другими перевозчиками]]) -> 9491.2468 | AA3: 1
A4: Январь | B4: 2014-01-08 | C4: Украина | D4: СТ | E4: Киев - Кировоград - Запорожье - Мелитополь | F4: 750 | G4: 10958 | H4: 96 | I4: 3 | J4: 10.18 | K4: 608 | L4: 6189.44 | M4: 150 | N4: 400 | O4: 4112 | R4: =SUM(База[[#This Row],[Расход ДТ, грн.]:[З/п]], База[[#This Row],[Расходы за рейс, грн]:[Затраты на ремонт (СТО), грн]]) -> 6739.44 | S4: 6500 | U4: 2300 | V4: =База[[#This Row],[ЗАТРАТЫ (ВСЕГО), грн]]-База[[#This Row],[Стоимость обратной загрузки]] -> 4439.44 | W4: =S4+База[[#This Row],[Прибыль от экспорта]]-V4 -> 2060.56 | X4: =IFERROR(База[[#This Row],[Себестоимость рейса с учетом обратной загрузки]]/База[[#This Row],[Вес, кг.]],0) -> 0.4051323234 | Y4: =IFERROR(База[[#This Row],[Расст.,км]]/База[[#This Row],[Вес, кг.]]*База[[#This Row],[Стоимость перевозки 1кг.]],0) -> 0.02772853099 | Z4: =IF(База[[#This Row],[СТ, СПД]]="СТ",База[[#This Row],[ЗАТРАТЫ (ВСЕГО), грн]],База[[#This Row],[Стоимость затрат, другими перевозчиками]]) -> 6739.44 | AA4: 1
A5: Январь | B5: 2014-01-08 | C5: Украина | D5: СТ | E5: Киев - Коростень - Житомир - Винница | F5: 385 | G5: 11041 | H5: 96 | I5: 4 | J5: 10.18 | K5: 329.84 | L5: 3357.7712 | M5: 150 | N5: 400 | O5: 2446 | R5: =SUM(База[[#This Row],[Расход ДТ, грн.]:[З/п]], База[[#This Row],[Расходы за рейс, грн]:[Затраты на ремонт (СТО), грн]]) -> 3907.7712 | S5: 2600 | U5: 2000 | V5: =База[[#This Row],[ЗАТРАТЫ (ВСЕГО), грн]]-База[[#This Row],[Стоимость обратной загрузки]] -> 1907.7712 | W5: =S5+База[[#This Row],[Прибыль от экспорта]]-V5 -> 692.2288 | X5: =IFERROR(База[[#This Row],[Себестоимость рейса с учетом обратной загрузки]]/База[[#This Row],[Вес, кг.]],0) -> 0.1727897111 | Y5: =IFERROR(База[[#This Row],[Расст.,км]]/База[[#This Row],[Вес, кг.]]*База[[#This Row],[Стоимость перевозки 1кг.]],0) -> 0.00602518239 | Z5: =IF(База[[#This Row],[СТ, СПД]]="СТ",База[[#This Row],[ЗАТРАТЫ (ВСЕГО), грн]],База[[#This Row],[Стоимость затрат, другими перевозчиками]]) -> 3907.7712 | AA5: 1
A6: Январь | B6: 2014-01-08 | C6: Украина | D6: СТ | E6: Киев - Кременчуг - Кривой Рог | F6: 455 | G6: 10075 | H6: 96 | I6: 3 | J6: 10.18 | K6: 411.92 | L6: 4193.3456 | M6: 225 | N6: 600 | O6: 2687 | Q6: 320 | R6: =SUM(База[[#This Row],[Расход ДТ, грн.]:[З/п]], База[[#This Row],[Расходы за рейс, грн]:[Затраты на ремонт (СТО), грн]]) -> 5338.3456 | S6: 3000 | U6: 2000 | V6: =База[[#This Row],[ЗАТРАТЫ (ВСЕГО), грн]]-База[[#This Row],[Стоимость обратной загрузки]] -> 3338.3456 | W6: =S6+База[[#This Row],[Прибыль от экспорта]]-V6 -> -338.3456 | X6: =IFERROR(База[[#This Row],[Себестоимость рейса с учетом обратной загрузки]]/База[[#This Row],[Вес, кг.]],0) -> 0.3313494392 | Y6: =IFERROR(База[[#This Row],[Расст.,км]]/База[[#This Row],[Вес, кг.]]*База[[#This Row],[Стоимость перевозки 1кг.]],0) -> 0.01496416822 | Z6: =IF(База[[#This Row],[СТ, СПД]]="СТ",База[[#This Row],[ЗАТРАТЫ (ВСЕГО), грн]],База[[#This Row],[Стоимость затрат, другими перевозчиками]]) -> 5338.3456 | AA6: 1
A7: Январь | B7: 2014-01-08 | C7: Украина | D7: СТ | E7: Киев - Харьков | F7: 495 | G7: 10674 | H7: 120 | I7: 4 | J7: 10.18 | K7: 438.2 | L7: 4460.876 | M7: 150 | N7: 400 | O7: 3076 | R7: =SUM(База[[#This Row],[Расход ДТ, грн.]:[З/п]], База[[#This Row],[Расходы за рейс, грн]:[Затраты на ремонт (СТО), грн]]) -> 5010.876 | S7: 4500 | U7: 1800 | V7: =База[[#This Row],[ЗАТРАТЫ (ВСЕГО), грн]]-База[[#This Row],[Стоимость обратной загрузки]] -> 3210.876 | W7: =S7+База[[#This Row],[Прибыль от экспорта]]-V7 -> 1289.124 | X7: =IFERROR(База[[#This Row],[Себестоимость рейса с учетом обратной загрузки]]/База[[#This Row],[Вес, кг.]],0) -> 0.3008128162 | Y7: =IFERROR(База[[#This Row],[Расст.,км]]/База[[#This Row],[Вес, кг.]]*База[[#This Row],[Стоимость перевозки 1кг.]],0) -> 0.01395000412 | Z7: =IF(База[[#This Row],[СТ, СПД]]="СТ",База[[#This Row],[ЗАТРАТЫ (ВСЕГО), грн]],База[[#This Row],[Стоимость затрат, другими перевозчиками]]) -> 5010.876 | AA7: 1
A8: Январь | B8: 2014-01-08 | C8: Украина | D8: СТ | E8: Киев - Хмельницкий | F8: 430 | G8: 7456 | H8: 96 | I8: 1 | J8: 10.18 | K8: 348.46 | L8: 3547.3228 | M8: 150 | N8: 400 | O8: 2372 | R8: =SUM(База[[#This Row],[Расход ДТ, грн.]:[З/п]], База[[#This Row],[Расходы за рейс, грн]:[Затраты на ремонт (СТО), грн]]) -> 4097.3228 | S8: 3000 | U8: 1600 | V8: =База[[#This Row],[ЗАТРАТЫ (ВСЕГО), грн]]-База[[#This Row],[Стоимость обратной загрузки]] -> 2497.3228 | W8: =S8+База[[#This Row],[Прибыль от экспорта]]-V8 -> 502.6772 | X8: =IFERROR(База[[#This Row],[Себестоимость рейса с учетом обратной загрузки]]/База[[#This Row],[Вес, кг.]],0) -> 0.3349413627 | Y8: =IFERROR(База[[#This Row],[Расст.,км]]/База[[#This Row],[Вес, кг.]]*База[[#This Row],[Стоимость перевозки 1кг.]],0) -> 0.01931662902 | Z8: =IF(База[[#This Row],[СТ, СПД]]="СТ",База[[#This Row],[ЗАТРАТЫ (ВСЕГО), грн]],База[[#This Row],[Стоимость затрат, другими перевозчиками]]) -> 4097.3228 | AA8: 1
A9: Январь | B9: 2014-01-09 | C9: По Киеву | D9: СТ | E9: Киев (Полесская) - Киев (Склад) | F9: 50 | G9: 10000 | H9: 120 | I9: 1 | J9: 10.18 | L9: 0 | O9: 348 | R9: =SUM(База[[#This Row],[Расход ДТ, грн.]:[З/п]], База[[#This Row],[Расходы за рейс, грн]:[Затраты на ремонт (СТО), грн]]) -> 0 | S9: 900 | V9: =База[[#This Row],[ЗАТРАТЫ (ВСЕГО), грн]]-База[[#This Row],[Стоимость обратной загрузки]] -> 0 | W9: =S9+База[[#This Row],[Прибыль от экспорта]]-V9 -> 900 | X9: =IFERROR(База[[#This Row],[Себестоимость рейса с учетом обратной загрузки]]/База[[#This Row],[Вес, кг.]],0) -> 0 | Y9: =IFERROR(База[[#This Row],[Расст.,км]]/База[[#This Row],[Вес, кг.]]*База[[#This Row],[Стоимость перевозки 1кг.]],0) -> 0 | Z9: =IF(База[[#This Row],[СТ, СПД]]="СТ",База[[#This Row],[ЗАТРАТЫ (ВСЕГО), грн]],База[[#This Row],[Стоимость затрат, другими перевозчиками]]) -> 0 | AA9: 1
A10: Январь | B10: 2014-01-09 | C10: По Киеву | D10: СТ | E10: Киев (Склад) - Киев (Рынки) | F10: 5 | G10: 2994 | H10: 96 | I10: 1 | J10: 10.18 | L10: 0 | O10: 122 | R10: =SUM(База[[#This Row],[Расход ДТ, грн.]:[З/п]], База[[#This Row],[Расходы за рейс, грн]:[Затраты на ремонт (СТО), грн]]) -> 0 | S10: 600 | V10: =База[[#This Row],[ЗАТРАТЫ (ВСЕГО), грн]]-База[[#This Row],[Стоимость обратной загрузки]] -> 0 | W10: =S10+База[[#This Row],[Прибыль от экспорта]]-V10 -> 600 | X10: =IFERROR(База[[#This Row],[Себестоимость рейса с учетом обратной загрузки]]/База[[#This Row],[Вес, кг.]],0) -> 0 | Y10: =IFERROR(База[[#This Row],[Расст.,км]]/База[[#This Row],[Вес, кг.]]*База[[#This Row],[Стоимость перевозки 1кг.]],0) -> 0 | Z10: =IF(База[[#This Row],[СТ, СПД]]="СТ",База[[#This Row],[ЗАТРАТЫ (ВСЕГО), грн]],База[[#This Row],[Стоимость затрат, другими перевозчиками]]) -> 0 | AA10: 1
